Cogmind - Beta 14 @@@ ROGUE MODE // 2024.08.09 @ 15:31:24 Player: Sgt. SmokeWeed Result: Destroyed by G-47 Trooper with Particle Gun Performance ------------- Evolutions (0) 0 Regions Visited (2) 400 Robots Destroyed (19) 95 Value Destroyed (352) 352 Prototype IDs (0) 0 Alien Tech Used (0) 0 Bonus (0) 0 TOTAL SCORE: 847 Bonus ------- None Cogmind --------- Core Integrity 0/250 Matter 297/300 Energy 100/100 System Corruption 0% Temperature Cool (9) Movement Core (50) Location -10/Mines Parts ------- > --- POWER (1) -------- (None) > --- PROPULSION (2) --- (None) > --- UTILITY (2) ------ Improved Heat Sink Hacking Suite > --- WEAPON (2) ------- (None) > --- INVENTORY (5) ---- Ion Engine Light Treads Light Treads Peak State ------------ > --- POWER ------------ Ion Engine > --- PROPULSION ------- Light Treads Light Treads > --- UTILITY ---------- Improved Heat Sink Hacking Suite > --- WEAPON ----------- Assault Rifle Grenade Launcher > --- INVENTORY -------- (None) [Rating: 11] Favorites ----------- Power Ion Engine Engine Ion Engine Propulsion Light Treads Treads Light Treads Utility Hacking Suite Device Improved Heat Sink Hackware Hacking Suite Weapon Assault Rifle Ballistic Gun Assault Rifle Launcher Grenade Launcher Build | -11 -10 -10 ------- Run | Yrd Mat Min Slots Evolved . | . . . Power . | . . . Propulsion . | . . . Utility . | . . . Weapon . | . . . Parts Attached 8 | 5 2 1 Power 1 | 1 . . Engine 1 | 1 . . Core . | . . . Reactor . | . . . Propulsion 2 | 2 . . Treads 2 | 2 . . Leg . | . . . Wheel . | . . . Hover . | . . . Flight . | . . . Utility 2 | . 1 1 Device 1 | . . 1 Storage . | . . . Processor . | . . . Hackware 1 | . 1 . Protection . | . . . Artifact . | . . . Weapon 3 | 2 1 . Energy Gun . | . . . Energy Cannon . | . . . Ballistic Gun 2 | 2 . . Ballistic Cannon . | . . . Launcher 1 | . 1 . Special Weapon . | . . . Impact Weapon . | . . . Slashing Weapon . | . . . Piercing Weapon . | . . . Special Melee Weapon . | . . . Unidentified Prototypes . | . . . Parts Lost 2 | . . 2 Power . | . . . Propulsion . | . . . Utility . | . . . Weapon 2 | . . 2 Highest Loss Streak 2 | . . 2 To Critical Strikes . | . . . Average Slot Usage (%) 82 | . 84 82 Engine 13 | . 14 12 Treads 26 | . 28 25 Device 1 | . . 2 Hackware 13 | . 13 14 Ballistic Gun 15 | . 20 12 Launcher 10 | . 7 12 Peak Build Rating 11 | 5 8 11 Average Rating 7 | 3 7 8 On Entrance 4 | . 5 8 Naked Turns . | . . . Heaviest Build 11 | 8 10 11 Greatest Support 40 | 40 40 40 Greatest Overweight (x) 1 | 1 . . Average Overweight (x) . | . . . Largest Inventory Capacity 5 | 5 5 5 Average Capacity 5 | 5 5 5 Most Carried 3 | . . 3 Average Carried . | . . . Final Capacity 5 | 5 5 5 Final Carried 3 | . . 3 Class Distribution -------------------- 100% | Mutant Dominant Class ---------------- Mutant | -10/Materials Mutant | -10/Mines Resources | -11 -10 -10 ----------- Run | Yrd Mat Min Matter Collected 457 | 112 32 313 Remotely . | . . . Salvage Created 323 | . 291 32 Parts 37 | . 28 9 Haulers Intercepted . | . . . Recyclers Shooed . | . . . Parts Field Recycled . | . . . Retrieved Matter . | . . . Parts Self-Destructed . | . . . Prevented . | . . . Kills | -11 -10 -10 ------- Run | Yrd Mat Min Combat Hostiles Destroyed 12 | . 6 6 Guns 3 | . 3 . AOE 9 | . 3 6 Classes Destroyed 8 | . 6 2 Worker 2 | . 2 . Builder 1 | . 1 . Tunneler 1 | . . 1 Recycler 1 | . 1 . Operator 1 | . 1 . Watcher 1 | . 1 . Swarmer 6 | . . 6 Grunt 6 | . 6 . Best Kill Streak 5 | . 5 4 Combat Bots Only 4 | . 4 3 Max Kills in Single Turn 3 | . 2 3 Gunslinging . | . . . Exploded 3 | . 1 3 Melee . | . . . Uniques/NPCs Destroyed . | . . . Combat | -11 -10 -10 -------- Run | Yrd Mat Min Hostile Shots Fired 38 | . 20 18 Missed 10 | . 9 1 Damage Taken 702 | . 165 537 Core 262 | . 11 251 Absorbed by Shields . | . . . Regen/Repaired (Parts) 3 | . 3 . Core Remaining (%) 100 | 100 . . Volleys Fired 22 | . 18 4 Largest 2 | . 2 2 Hottest 50 | . 50 50 Shots Fired 37 | . 29 8 Gun 24 | . 20 4 Cannon . | . . . Launcher 13 | . 9 4 Special . | . . . Kinetic 24 | . 20 4 Thermal . | . . . Explosive 13 | . 9 4 Electromagnetic . | . . . Robot Hit Streak 5 | . 5 3 Robot Miss Streak 2 | . 2 1 Penetration Max . | . . . Secondary Targets . | . . . Shots Hit Robots 22 | . 19 3 Core Hits 27 | . 17 10 Critical Kills 1 | . 1 . Critical Parts Destroyed . | . . . Critical Strikes 1 | . 1 . Destroy 1 | . 1 . Melee Attacks . | . . . Impact . | . . . Slashing . | . . . Piercing . | . . . Sneak Attacks . | . . . Combat Hostiles . | . . . Follow-up Attacks . | . . . Damage Inflicted 952 | . 612 340 Guns 197 | . 186 11 Cannons . | . . . Explosions 747 | . 418 329 Melee . | . . . Ramming 8 | . 8 . Kinetic 197 | . 186 11 Thermal . | . . . Explosive 747 | . 418 329 Electromagnetic . | . . . Impact . | . . . Slashing . | . . . Piercing . | . . . Highest Corruption . | . . . Average Corruption . | . . . Corruption Purged . | . . . Corruption Blocked . | . . . Overload Shots . | . . . Overflow Damage 5 | . . 5 Projectiles . | . . . Explosions 5 | . . 5 Melee . | . . . Knockbacks . | . . . Impact . | . . . Kinetic . | . . . Secondary . | . . . Self-Inflicted Damage 62 | . 42 20 Shots 3 | . 2 1 Rammed 2 | . 2 . Targets Rammed 2 | . 2 . Kicked . | . . . Crushed . | . . . Highest Temperature 2 | . 2 . Average Temperature 2 | . 2 . Received Heat Transfer 87 | . 66 21 Siege Activations . | . . . Robots Corrupted . | . . . Combat Hostiles . | . . . Parts Fried . | . . . Impact Corruptions . | . . . Robots Melted . | . . . Combat Hostiles . | . . . Parts Melted . | . . . Heat Transferred . | . . . Parts Sabotaged . | . . . Parts Stolen . | . . . Parts Stripped . | . . . Power Chain Reactions . | . . . Alert | -11 -10 -10 ------- Run | Yrd Mat Min Peak Influence 242 | . 242 118 Initial 16 | . . 16 Average 62 | . 55 72 Maximum Alert Level 1 | . 1 . Low Security (%) 97 | 100 92 100 Level 1 2 | . 7 . Level 2 . | . . . Level 3 . | . . . Level 4 . | . . . Level 5 . | . . . High Security . | . . . Max Security . | . . . Squads Dispatched 1 | . 1 . Investigation 1 | . 1 . Extermination . | . . . Reinforcement . | . . . Assault . | . . . Garrison . | . . . Intercept . | . . . Searches Triggered . | . . . Construction Impeded . | . . . Haulers Reinforced . | . . . Active Scanning Responses . | . . . Cargo Convoy Interrupts . | . . . Stealth | -11 -10 -10 --------- Run | Yrd Mat Min Distress Signals 1 | . 1 . Communications Jammed . | . . . Distress Signals . | . . . Times Spotted 17 | . 10 7 Peak Tracking Total 4 | . 4 2 Tactical Retreats 1 | . . 1 Traps | -11 -10 -10 ------- Run | Yrd Mat Min Traps Triggered . | . . . Indirectly . | . . . Trap Hack Attempts . | . . . Triggered . | . . . Disarmed . | . . . Reprogrammed . | . . . Reused . | . . . Traps Extracted . | . . . Installed . | . . . Triggered . | . . . Machines | -11 -10 -10 ---------- Run | Yrd Mat Min Machines Disabled 1 | . 1 . Max in Single Turn 1 | . 1 . Machines Repaired . | . . . Machines Dismantled . | . . . Machines Sabotaged . | . . . Overloaded Fab Kills . | . . . Hacking | -11 -10 -10 --------- Run | Yrd Mat Min Machines Accessed 2 | . 2 . Terminals 1 | . 1 . Fabricators . | . . . Repair Stations 1 | . 1 . Recycling Units . | . . . Scanalyzers . | . . . Garrison Access . | . . . Total Hacks 5 | . 5 . Successful 2 | . 2 . Failed 3 | . 3 . Catastrophic . | . . . Database Lockouts . | . . . Manual 5 | . 5 . Terminals 3 | . 3 . Fabricators . | . . . Repair Stations 2 | . 2 . Recycling Units . | . . . Scanalyzers . | . . . Garrison Access . | . . . Terminal Hacks 1 | . 1 . Branch Access Points 1 | . 1 . Fabricator Hacks . | . . . Repair Station Hacks . | . . . Recycling Unit Hacks . | . . . Scanalyzer . | . . . Garrison Access Hacks . | . . . Unauthorized Hacks 1 | . 1 . Terminals . | . . . Fabricators . | . . . Repair Stations 1 | . 1 . Patch 1 | . 1 . Recycling Units . | . . . Scanalyzers . | . . . Garrison Access . | . . . Data Cores Recovered 1 | . 1 . Used . | . . . Hacking Detections . | . . . Full Trace Events . | . . . Feedback Events . | . . . Feedback Blocked . | . . . Robot Schematics Acquired . | . . . Robots Built . | . . . Authchips . | . . . Time . | . . . Total Robot Build Rating . | . . . Part Schematics Acquired . | . . . Parts Built . | . . . Authchips . | . . . Time . | . . . Total Part Build Rating . | . . . Parts Repaired . | . . . Time . | . . . Parts Recycled . | . . . Recycled Matter . | . . . Retrieved Matter . | . . . Retrieved Components . | . . . Parts Scanalyzed . | . . . Part Schematics Acquired . | . . . Parts Damaged . | . . . Bothacking | -11 -10 -10 ------------ Run | Yrd Mat Min Used RIF Installer . | . . . Robots Hacked . | . . . Non-combat . | . . . Combat . | . . . Robot Hacks Applied . | . . . Relay Couplers Released . | . . . Fabnet Peak Effective % . | . . . Robots Rewired . | . . . Allies Hacked . | . . . Hacks Repelled . | . . . Allies | -11 -10 -10 -------- Run | Yrd Mat Min Total Allies . | . . . Largest Group . | . . . Highest-Rated Group . | . . . Highest-Rated Ally . | . . . Total Orders . | . . . Ally Attacks . | . . . Total Damage . | . . . Kills . | . . . Allies Corrupted . | . . . Allies Melted . | . . . Intel | -11 -10 -10 ------- Run | Yrd Mat Min Robot Analysis Total . | . . . Derelict Logs Recovered 2 | . . 2 Drone Launches . | . . . Drone Recoveries . | . . . Exploration | -11 -10 -10 ------------- Run | Yrd Mat Min Turns Passed 1147 | 66 412 669 Spaces Moved 622 | 41 223 358 Core 111 | 6 . 105 Treads 511 | 35 223 253 Legs . | . . . Wheels . | . . . Hover . | . . . Flight . | . . . Fastest Speed 50 | 50 160 50 Average Speed 140 | 146 160 127 Slowest Speed 160 | 160 160 160 Overloaded Moves . | . . . Propulsion Burnouts . | . . . Robots Hopped . | . . . Cave-ins Triggered . | . . . Exploration Rate (%) 35 | 3 41 62 Regions Visited 2 Branch Regions 1 Pre-discovered Areas 1 | . . 1 Known Exits Taken 1 | . 1 . Unknown Exits Taken 1 | 1 . . Scrap Searched 1 | . . 1 Spaces Dug . | . . . Terrain Destroyed 57 | . 27 30 Melee . | . . . Projectile . | . . . AOE 57 | . 27 30 Terrain Rammed . | . . . Walls Destroyed . | . . . Machines Disabled . | . . . Actions | -11 -10 -10 --------- Run | Yrd Mat Min Total 855 | 45 248 562 Wait 199 | . 3 196 Move 620 | 40 222 358 Hop . | . . . Pick Up . | . . . Fast Attach 8 | 5 2 1 Attach . | . . . Detach 3 | . . 3 Swap . | . . . Drop 1 | . 1 . Fire 22 | . 18 4 Melee . | . . . Ram . | . . . Kick . | . . . Crush 2 | . 2 . Escape Stasis . | . . . Rewire . | . . . Trap . | . . . Miscellaneous . | . . . Route ------- -11/Scrapyard -10/Materials (discovered 2 exits: [*Mat] / *Min) -10/Mines (discovered 2 exits: [*Mat x2]) History --------- Turn | Location | Event 5 | -11/Scrapyard | Discovered new exit (range 15) 67 | -11/Scrapyard | Entered Materials 126 | -10/Materials | Identified exit to Mines 318 | -10/Materials | Build established: Mutant 415 | -10/Materials | Discovered new exit (range 7) 479 | -10/Materials | Entered Mines 480 | -10/Mines | Met a Derelict bent on vengeance 511 | -10/Mines | Learned Materials stockpile data 517 | -10/Mines | Learned location of Storage (-8) 521 | -10/Mines | Learned Materials emergency access door positions 695 | -10/Mines | Assembled infested the area 942 | -10/Mines | Discovered new exit (range 5) 1027 | -10/Mines | Discovered new exit (range 8) 1095 | -10/Mines | Core integrity fell below 50% 1098 | -10/Mines | Core integrity fell below 20% 1148 | -10/Mines | Destroyed by G-47 Trooper with Particle Gun Last Messages --------------- S-10 Pest destroyed. Acquired 38 matter. U-05 Engineer lays Concrete. Acquired 3 matter. U-05 Engineer builds a Wall. Acquired 4 matter. U-05 Engineer lays Concrete. The unstable cave ceiling collapses. Acquired 3 matter. U-05 Engineer lays Concrete. U-05 Engineer builds a Wall. U-05 Engineer lays Concrete. U-05 Engineer builds a Wall. The unstable cave ceiling collapses. Assault Rifle destroyed. Grenade Launcher destroyed. The unstable cave ceiling collapses. U-05 Engineer destroyed. Acquired 8 matter. Acquired 24 matter. Map ----- +----------------------------------------------------+ | | | #??????????????????????????????????????????????? | | ####??????????????????????????????????????????? | | ####???????????????????????????????????????? | | ##??????????????????????????????????????? | | ##?????????????????????????????????????? | | ##????????????????????????????????????? | | ## #????????????????????????????????????? | | ##### ######???????????????????????????????? | | #??## ####?###??????????????????????????? | | ##?## # # ## ##?????????????????????????? | | ###?## = %< #?????????????????????????? | | ????# | [*[ """ #?????????????????????????? | | ????# ###= """ #???###???????????????????? | | ????## ### % """ #?## #???????????????????? | | ?????### #### #?# ???????????????????? | | ???????## #### ##?# ???????????????????? | | ????????## ## ###??# ???????????????????? | | ?????????# ##*#???? ????????????????????? | | ##???????##### ## #????? ????????????????????? | | #??????????# ## #????? ???????????###??????? | | ###???????# ##*#????? ???????? #??????? | | ##??????# #?????# #????????""" #??????? | | ##?????#### #?????# #????????""" #??????? | | ########## #?????# #?????????"" #??????? | | * #######@###??????? #??????? | | #### ## ######## < ##?????? ???????? | | ???##### #??????# g #?????? ????????? | | ???????# ###???###### ##?????# #????????? | | ???????# #????????## ####### #????????? | | ???????### #?????????### #????????? | | ?????????# #???????????# ## #????????? | | ????????? ?????####### ### #########????????? | | ????????? ????# #?####????????????????? | | ???????? ??# < ## #?????????????????????? | | ???????? ## #?# ##?????####????####???? | | ??????? """ ## #?## ##???## ##??# ##??? | | ??????? """ ### #?## ##?## ### #??? | | ??????# """ #?###?## ### #??? | | ??????# """ #?????# #??? | | ??????# ??? #?????# ## #???? | | ??????????? #?????## ### ##?#####???? | | ???????????####??????#####?## ##??????????? | | ????????????????????????????# ##???????????? | | ???????????????????????????## ##???????????? | | ??????????????????????????## ###?????????? | | ?????????????????????????## ##????????? | | ????????????????#####???## #????????? | | ???????????????## ##### ##???????? | | ???????????????# ### ##??????? | +----------------------------------------------------+ Best States ------------- Heat Dissipation 39 Energy Generation 10 Energy Capacity 250 Matter Stores 297 Matter Capacity 300 Sight Range 16 Terrain Scan Density 10 Evasion (%) 50 Recoil Reduction 2 Offensive Hacking 10 Item Schematics ----------------- None Robot Schematics ------------------ None Fabricated ------------ Nothing Alien Tech Used ----------------- None Achievements -------------- Brute Force Challenges ------------ None Game ------ Seed ReinforcedNeutrinoDerivative Manual? 0 Play Time 00:06:55 Cumulative 69.2 hours Start 2024.08.09 @ 15:26:30 End 2024.08.09 @ 15:31:24 Sessions 1 Manual Loads 0 Difficulty Rogue Special Mode None Game No. 167 Rogue 92 Adventurer 75 Explorer 0 Win Type - Total 0 Types 0/0/0/0/0/0/0/0/0 Lore% 38 Gallery% 42 Achievement% 35 Wizard Run 0 Options --------- Layout 0 ASCII 0 Keyboard 0 Movement Mouse Keybinds 0 Fullscreen 1 Font 24/Smallcaps Map View 76x50 Zoom Use 0% Tactical HUD 0 Map Filters NONE Filters NONE Steam 1 RUN: 114fc41d-dd99-49e7-84cf-6eca13b90101